fUSD/lending_fUSD_20251117
["ID","MTS","AMOUNT","RATE_DAILY","PERIOD"]
[394213579,1763383844986,-227.97083002,0.00037032,7]
[394213580,1763383844997,-271.71340129,0.00037032,7]
[394213581,1763383845007,-160.22425461,0.00037032,7]
[394213582,1763383845018,-187.58,0.00037036,14]
[394213583,1763383845029,-150.0,0.00037051,7]
[394213584,1763383845040,-150.0,0.00037055,7]
[394213585,1763383845051,-167.69866586,0.0003707,7]
[394213586,1763383845062,-227.97083002,0.0003707,7]
[394213587,1763383845073,-271.71340129,0.0003707,7]
[394213588,1763383845084,-160.22425461,0.0003707,7]
[394213589,1763383845095,-150.0,0.0003707,7]
[394213590,1763383845106,-150.0,0.0003708,7]
[394213591,1763383845117,-150.0,0.00037093,7]
[394213592,1763383845128,-150.0,0.00037093,7]
[394213593,1763383845140,-150.0,0.00037096,7]
[394213594,1763383845152,-167.69866586,0.00037109,7]
[394213595,1763383845165,-227.97083002,0.00037109,7]
[394213596,1763383845177,-271.71340129,0.00037109,7]
[394213597,1763383845191,-160.22425461,0.00037109,7]
[394213598,1763383845204,-883.31,0.0003711,5]
[394213599,1763383845216,-871.21,0.00037112,5]
[394213600,1763383845228,-878.25,0.00037116,5]
[394213601,1763383845240,-885.25,0.00037127,5]
[394213602,1763383845252,-150.0,0.00037131,7]
[394213603,1763383845263,-150.0,0.00037136,7]
[394213604,1763383845274,-150.0,0.00037137,7]
[394213605,1763383845285,-167.69866586,0.00037147,7]
[394213606,1763383845296,-227.97083002,0.00037147,7]
[394213607,1763383845307,-271.71340129,0.00037147,7]
[394213608,1763383845318,-160.22425461,0.00037147,7]
[394213609,1763383845329,-150.0,0.00037157,7]
[394213610,1763383845340,-538.90933031,0.00037172,120]
[394213611,1763383845351,-500.0,0.00037172,2]
[394213612,1763383845362,-500.0,0.00037172,2]
[394213613,1763383845373,-500.0,0.00037172,120]
[394213614,1763383845385,-500.0,0.00037172,120]
[394213615,1763383845396,-500.0,0.00037172,30]
[394213616,1763383845407,-500.0,0.00037172,30]
[394213617,1763383845418,-500.0,0.00037172,120]
[394213618,1763383845430,-500.0,0.00037172,120]
[394213619,1763383845442,-500.0,0.00037172,120]
[394213620,1763383845453,-500.0,0.00037172,120]
[394213621,1763383845464,-500.0,0.00037172,2]
[394213622,1763383845475,-532.49857186,0.00037172,30]
[394213623,1763383845486,-150.0,0.00037177,7]
[394213624,1763383845497,-150.0,0.00037178,7]
[394213625,1763383845508,-150.0,0.00037178,7]
[394213626,1763383845519,-150.0,0.00037183,7]
[394213627,1763383845531,-167.69866586,0.00037186,7]
[394213628,1763383845542,-227.97083002,0.00037186,7]
[394213629,1763383845555,-271.71340129,0.00037186,7]
[394213630,1763383845567,-160.22425461,0.00037186,7]
[394213631,1763383845579,-150.0,0.00037218,7]
[394213632,1763383845593,-150.0,0.0003722,7]
[394213633,1763383845604,-167.69866586,0.00037224,7]
[394213634,1763383845615,-227.97083002,0.00037224,7]
[394213635,1763383845626,-271.71340129,0.00037224,7]
[394213636,1763383845637,-160.22425461,0.00037224,7]
[394213637,1763383845648,-150.0,0.00037234,7]
[394213638,1763383845661,-150.0,0.00037243,7]
[394213639,1763383845672,-150.0,0.00037258,7]
[394213640,1763383845684,-167.69866586,0.00037263,7]
[394213641,1763383845695,-227.97083002,0.00037263,7]
[394213642,1763383845706,-271.71340129,0.00037263,7]
[394213643,1763383845717,-160.22425461,0.00037263,7]
[394213644,1763383845728,-150.0,0.00037263,7]
[394213645,1763383845739,-150.0,0.00037263,7]
[394213646,1763383845751,-150.0,0.00037286,7]
[394213647,1763383845761,-150.0,0.00037299,7]
[394213648,1763383845776,-167.69866586,0.00037301,7]
[394213649,1763383845788,-227.97083002,0.00037301,7]
[394213650,1763383845801,-271.71340129,0.00037301,7]
[394213651,1763383845811,-160.22425461,0.00037301,7]
[394213652,1763383845823,-150.0,0.00037305,7]
[394213653,1763383845837,-150.0,0.00037337,7]
[394213654,1763383845849,-150.0,0.00037339,7]
[394213655,1763383845861,-167.69866586,0.0003734,7]
[394213656,1763383845873,-227.97083002,0.0003734,7]
[394213657,1763383845884,-271.71340129,0.0003734,7]
[394213658,1763383845896,-160.22425461,0.0003734,7]
[394213659,1763383845908,-150.0,0.00037347,7]
[394213660,1763383845919,-150.0,0.00037347,7]
[394213661,1763383845930,-150.0,0.00037347,7]
[394213662,1763383845942,-167.69866586,0.00037378,7]
[394213663,1763383845954,-227.97083002,0.00037378,7]
[394213664,1763383845965,-271.71340129,0.00037378,7]
[394213665,1763383845976,-160.22425461,0.00037378,7]
[394213666,1763383845987,-150.0,0.0003738,7]
[394213667,1763383845999,-150.0,0.00037389,7]
[394213668,1763383846010,-150.0,0.0003739,7]
[394213669,1763383846021,-167.69866586,0.00037417,7]
[394213670,1763383846032,-227.97083002,0.00037417,7]
[394213671,1763383846043,-271.71340129,0.00037417,7]
[394213672,1763383846054,-160.22425461,0.00037417,7]
[394213673,1763383846065,-150.0,0.00037417,7]
[394213674,1763383846077,-150.0,0.0003742,7]
[394213675,1763383846088,-150.0,0.00037432,7]
[394213676,1763383846100,-150.0,0.00037432,7]
[394213677,1763383846113,-1004.9,0.0003744,2]
[394213678,1763383846125,-150.0,0.0003744,7]
[394213679,1763383846136,-317.84610538,0.00037446,2]
[394213680,1763383846148,-500.0,0.00037446,2]
[394213681,1763383846160,-500.0,0.00037446,2]
[394213682,1763383846175,-167.69866586,0.00037455,7]
[394213683,1763383846187,-227.97083002,0.00037455,7]
[394213684,1763383846198,-271.71340129,0.00037455,7]
[394213685,1763383846211,-160.22425461,0.00037455,7]
[394213686,1763383846222,-150.0,0.00037461,7]
[394213687,1763383846234,-150.0,0.00037474,7]
[394213688,1763383846247,-150.0,0.00037492,7]
[394213689,1763383846258,-167.69866586,0.00037494,7]
[394213690,1763383846270,-227.97083002,0.00037494,7]
[394213691,1763383846282,-271.71340129,0.00037494,7]
[394213692,1763383846293,-160.22425461,0.00037494,7]
[394213693,1763383846304,-150.0,0.00037501,7]
[394213694,1763383846316,-150.0,0.00037517,7]
[394213695,1763383846327,-150.0,0.00037517,7]
[394213696,1763383846339,-167.69866586,0.00037532,7]
[394213697,1763383846350,-227.97083002,0.00037532,7]
[394213698,1763383846361,-271.71340129,0.00037532,7]
[394213699,1763383846373,-160.22425461,0.00037532,7]
[394213700,1763383846384,-150.0,0.00037538,7]
[394213701,1763383846395,-150.0,0.00037542,7]
[394213702,1763383846407,-150.0,0.00037543,7]
[394213703,1763383846419,-11032.36,0.00037556,2]
[394213704,1763383846430,-150.0,0.00037559,7]
[394213705,1763383846442,-150.0,0.00037565,7]
[394213706,1763383846454,-167.69866586,0.00037571,7]
[394213707,1763383846465,-227.97083002,0.00037571,7]
[394213708,1763383846476,-271.71340129,0.00037571,7]
[394213709,1763383846487,-160.22425461,0.00037571,7]
[394213710,1763383846499,-150.0,0.00037583,7]
[394213711,1763383846509,-700.23,0.00037589,2]
[394213712,1763383846520,-150.0,0.0003759,7]
[394213713,1763383846531,-150.0,0.00037595,7]
[394213714,1763383846542,-150.0,0.00037601,7]
[394213715,1763383846553,-150.0,0.00037601,7]
[394213716,1763383846564,-167.69866586,0.00037609,7]
[394213717,1763383846576,-227.97083002,0.00037609,7]
[394213718,1763383846588,-271.71340129,0.00037609,7]
[394213719,1763383846601,-160.22425461,0.00037609,7]
[394213720,1763383846613,-150.0,0.00037623,7]
[394213721,1763383846624,-150.0,0.00037644,7]
[394213722,1763383846636,-150.0,0.00037646,7]
[394213723,1763383846647,-167.69866586,0.00037648,7]
[394213724,1763383846658,-227.97083002,0.00037648,7]
[394213725,1763383846670,-271.71340129,0.00037648,7]
[394213726,1763383846681,-160.22425461,0.00037648,7]
[394213727,1763383846694,-150.0,0.00037664,7]
[394213728,1763383846705,-167.69866586,0.00037686,7]
[394213729,1763383846716,-227.97083002,0.00037686,7]
[394213730,1763383846727,-271.71340129,0.00037686,7]
[394213731,1763383846738,-160.22425461,0.00037686,7]
[394213732,1763383846749,-150.0,0.00037686,7]
[394213733,1763383846760,-150.0,0.00037686,7]
[394213734,1763383846772,-150.0,0.00037698,7]
[394213735,1763383847116,-150.0,0.00037704,7]
[394213736,1763383847138,-500.0,0.0003772,2]
[394213737,1763383847158,-276.91216785,0.0003772,2]
[394213738,1763383847172,-167.69866586,0.00037725,7]
[394213739,1763383847180,-227.97083002,0.00037725,7]
[394213740,1763383847190,-271.71340129,0.00037725,7]
[394213741,1763383847199,-160.22425461,0.00037725,7]
[394213742,1763383847210,-150.0,0.00037728,7]
[394213743,1763383847219,-150.0,0.00037728,7]
[394213744,1763383847228,-150.0,0.00037745,7]
[394213745,1763383847237,-150.0,0.00037749,7]
[394213746,1763383847247,-167.69866586,0.00037763,7]
[394213747,1763383847257,-227.97083002,0.00037763,7]
[394213748,1763383847267,-271.71340129,0.00037763,7]
[394213749,1763383847277,-160.22425461,0.00037763,7]
[394213750,1763383847286,-150.0,0.00037763,7]
[394213751,1763383847295,-150.0,0.00037771,7]
[394213752,1763383847304,-150.0,0.00037771,7]
[394213753,1763383847313,-150.0,0.00037785,7]
[394213754,1763383847322,-150.0,0.00037801,7]
[394213755,1763383847332,-167.69866586,0.00037802,7]
[394213756,1763383847342,-227.97083002,0.00037802,7]
[394213757,1763383847351,-271.71340129,0.00037802,7]
[394213758,1763383847360,-160.22425461,0.00037802,7]
[394213759,1763383847370,-150.0,0.00037813,7]
[394213760,1763383847381,-150.0,0.00037826,7]
[394213761,1763383847390,-167.69866586,0.0003784,7]
[394213762,1763383847399,-227.97083002,0.0003784,7]
[394213763,1763383847409,-271.71340129,0.0003784,7]
[394213764,1763383847418,-160.22425461,0.0003784,7]
[394213765,1763383847427,-150.0,0.00037852,7]
[394213766,1763383847437,-158.31,0.00037853,2]
[394213767,1763383847446,-150.0,0.00037856,7]
[394213768,1763383847455,-150.0,0.00037856,7]
[394213769,1763383847464,-151.0,0.00037858,6]
[394213770,1763383847473,-162.11795682,0.00037863,30]
[394213771,1763383847483,-163.07953538,0.00037863,30]
[394213772,1763383847492,-150.0,0.00037866,7]
[394213773,1763383847501,-864.02,0.00037868,5]
[394213774,1763383847511,-167.69866586,0.00037879,7]
[394213775,1763383847520,-227.97083002,0.00037879,7]
[394213776,1763383847530,-271.71340129,0.00037879,7]
[394213777,1763383847541,-160.22425461,0.00037879,7]
[394213778,1763383847551,-150.0,0.00037898,7]
[394213779,1763383847560,-150.0,0.00037904,7]
[394213780,1763383847570,-150.0,0.00037907,7]
[394213781,1763383847579,-168.54251261,0.00037916,2]
[394213782,1763383847588,-2874.27582747,0.00037916,2]
[394213783,1763383847596,-167.69866586,0.00037917,7]
[394213784,1763383847605,-227.97083002,0.00037917,7]
[394213785,1763383847614,-271.71340129,0.00037917,7]
[394213786,1763383847624,-160.22425461,0.00037917,7]
[394213787,1763383847633,-150.0,0.00037919,7]
[394213788,1763383847644,-2874.27582741,0.00037929,2]
[394213789,1763383847654,-219.73837232,0.00037936,2]
[394213790,1763383847664,-150.0,0.00037936,7]
[394213791,1763383847673,-150.0,0.0003794,7]
[394213792,1763383847683,-150.0,0.0003794,7]
[394213793,1763383847693,-2874.27582741,0.00037943,2]
[394213794,1763383847702,-150.0,0.00037947,7]
[394213795,1763383847711,-150.0,0.00037955,7]
[394213796,1763383847721,-167.69866586,0.00037956,7]
[394213797,1763383847732,-227.97083002,0.00037956,7]
[394213798,1763383847741,-271.71340129,0.00037956,7]
[394213799,1763383847750,-160.22425461,0.00037956,7]
[394213800,1763383847759,-2874.27582741,0.00037956,2]
[394213801,1763383847769,-2874.27582741,0.00037969,2]
[394213802,1763383847777,-150.0,0.00037983,7]
[394213803,1763383847786,-2874.27582741,0.00037983,2]
[394213804,1763383847797,-150.0,0.00037988,7]
[394213805,1763383847807,-222.2113773,0.00037989,2]
[394213806,1763383847817,-500.0,0.00037994,2]
[394213807,1763383847826,-167.69866586,0.00037994,7]
[394213808,1763383847835,-227.97083002,0.00037994,7]
[394213809,1763383847844,-271.71340129,0.00037994,7]
[394213810,1763383847853,-160.22425461,0.00037994,7]
[394213811,1763383847862,-2874.27582741,0.00037996,2]
[394213812,1763383847871,-2000.0,0.00038,2]
[394213813,1763383847880,-178.0,0.00038,30]
[394213814,1763383847889,-600.0,0.00038001,30]
[394213815,1763383847898,-150.0,0.00038007,7]
[394213816,1763383847908,-2874.27582741,0.00038009,2]
[394213817,1763383847917,-292.44768935,0.0003801,2]
[394213818,1763383847926,-170924.93764,0.00038016,4]
[394213819,1763383847935,-18904.904293,0.00038016,4]
[394213820,1763383847944,-2874.27582741,0.00038023,2]
[394213821,1763383847953,-150.0,0.00038025,7]
[394213822,1763383847962,-150.0,0.00038025,7]
[394213823,1763383847971,-500.0,0.00038025,120]
[394213824,1763383847980,-500.0,0.00038025,120]
[394213825,1763383847989,-500.0,0.00038025,120]
[394213826,1763383847998,-500.0,0.00038025,120]
[394213827,1763383848007,-500.0,0.00038025,2]
[394213828,1763383848016,-500.0,0.00038025,120]
[394213829,1763383848025,-500.0,0.00038025,7]
[394213830,1763383848035,-500.0,0.00038025,120]
[394213831,1763383848043,-500.0,0.00038025,2]
[394213832,1763383848052,-500.0,0.00038025,2]
[394213833,1763383848061,-500.0,0.00038025,120]
[394213834,1763383848070,-300.0,0.00038025,2]
[394213835,1763383848079,-500.0,0.00038025,30]
[394213836,1763383848087,-488.0,0.00038025,7]
[394213837,1763383848097,-185.47618898,0.00038025,120]
[394213838,1763383848106,-300.0,0.00038025,2]
[394213839,1763383848114,-418.12359549,0.00038025,2]
[394213840,1763383848123,-510.38727812,0.00038025,120]
[394213841,1763383848132,-370337.364887,0.00038026,4]
[394213842,1763383848141,-250489.981882,0.00038026,4]
[394213843,1763383848151,-170.8660425,0.00038026,2]
[394213844,1763383848160,-150.0,0.00038029,7]
[394213845,1763383848173,-167.69866586,0.00038033,7]
[394213846,1763383848182,-227.97083002,0.00038033,7]
[394213847,1763383848192,-271.71340129,0.00038033,7]
[394213848,1763383848201,-160.22425461,0.00038033,7]
[394213849,1763383848211,-500.0,0.00038035,2]
[394213850,1763383848220,-500.0,0.00038035,120]
[394213851,1763383848229,-464.11720793,0.00038035,120]
[394213852,1763383848239,-512.48318532,0.00038035,120]
[394213853,1763383848249,-500.0,0.00038035,7]
[394213854,1763383848258,-500.0,0.00038035,7]
[394213855,1763383848268,-519.3670811,0.00038035,120]
[394213856,1763383848277,-409.42606604,0.00038035,120]
[394213857,1763383848287,-575.41913925,0.00038035,30]
[394213858,1763383848296,-760000.0,0.00038036,2]
[394213859,1763383848306,-221.39638379,0.00038036,2]
[394213860,1763383848315,-151.0,0.00038036,31]
[394213861,1763383848324,-151.0,0.00038036,31]
[394213862,1763383848333,-151.0,0.00038036,31]
[394213863,1763383848343,-151.0,0.00038036,31]
[394213864,1763383848352,-151.0,0.00038036,31]
[394213865,1763383848361,-151.0,0.00038036,31]
[394213866,1763383848371,-151.0,0.00038036,31]
[394213867,1763383848380,-156.99417,0.00038036,31]
[394213868,1763383848388,-156.99417,0.00038036,31]
[394213869,1763383848397,-156.99417,0.00038036,31]
[394213870,1763383848406,-156.99417,0.00038036,31]
[394213871,1763383848415,-151.0,0.00038036,31]
[394213872,1763383848424,-151.0,0.00038036,31]
[394213873,1763383848434,-151.0,0.00038036,31]
[394213874,1763383848443,-597.250411,0.00038036,31]
[394213875,1763383848452,-151.0,0.00038036,31]
[394213876,1763383848461,-597.250411,0.00038036,31]
[394213877,1763383848470,-151.0,0.00038036,31]
[394213878,1763383848479,-597.250411,0.00038036,31]
[394213879,1763383848488,-597.250411,0.00038036,31]
[394213880,1763383848499,-347.547412,0.00038036,31]
[394213881,1763383848510,-151.0,0.00038036,31]
[394213882,1763383848521,-347.547412,0.00038036,31]
[394213883,1763383848531,-151.0,0.00038036,31]
[394213884,1763383848540,-347.547412,0.00038036,31]
[394213885,1763383848552,-347.547412,0.00038036,31]
[394213886,1763383848562,-523.970185,0.00038036,31]
[394213887,1763383848571,-151.0,0.00038036,31]
[394213888,1763383848580,-218.8096058,0.00038036,2]
[394213889,1763383848589,-523.970185,0.00038036,31]
[394213890,1763383848598,-2874.27582741,0.00038036,2]
[394213891,1763383848608,-523.970185,0.00038036,31]
[394213892,1763383848618,-151.0,0.00038036,31]
[394213893,1763383848628,-151.0,0.00038036,31]
[394213894,1763383848638,-151.0,0.00038036,31]
[394213895,1763383848648,-523.970185,0.00038036,31]
[394213896,1763383848658,-151.0,0.00038036,30]
[394213897,1763383848667,-151.0,0.00038036,31]
[394213898,1763383848678,-151.0,0.00038036,31]
[394213899,1763383848688,-167.85771,0.00038036,31]
[394213900,1763383848697,-151.0,0.00038036,31]
[394213901,1763383848706,-167.85771,0.00038036,31]
[394213902,1763383848717,-271.074922,0.00038036,31]
[394213903,1763383848727,-150.0,0.00038058,7]
[394213904,1763383848738,-150.0,0.00038067,7]
[394213905,1763383848748,-150.0,0.00038069,7]
[394213906,1763383848758,-167.69866586,0.00038071,7]
[394213907,1763383848767,-227.97083002,0.00038071,7]
[394213908,1763383848776,-271.71340129,0.00038071,7]
[394213909,1763383848785,-160.22425461,0.00038071,7]
[394213910,1763383848794,-28487.4896067,0.00038072,4]
[394213911,1763383848804,-500.0,0.00038073,5]
[394213912,1763383848813,-501.3549135,0.00038073,5]
[394213913,1763383848822,-500.0,0.00038073,5]
[394213914,1763383848831,-1000.0,0.00038082,120]
[394213915,1763383848840,-1000.0,0.00038082,120]
[394213916,1763383848849,-1000.0,0.00038082,120]
[394213917,1763383848858,-1000.0,0.00038082,120]
[394213918,1763383848866,-1000.0,0.00038082,120]
[394213919,1763383848875,-1144.1989899,0.00038082,120]
[394213920,1763383848884,-56974.9792133,0.00038106,4]
[394213921,1763383848893,-162.11795682,0.0003811,30]
[394213922,1763383848904,-150.0,0.0003811,7]
[394213923,1763383848914,-167.69866586,0.0003811,7]
[394213924,1763383848923,-282.7433448,0.0003811,7]
[394213925,1763383848933,-227.97083002,0.0003811,7]
[394213926,1763383848943,-260.95185158,0.0003811,7]
[394213927,1763383848952,-150.0,0.0003811,7]
[394213928,1763383848961,-150.0,0.0003811,7]
[394213929,1763383848971,-271.71340129,0.0003811,7]
[394213930,1763383848982,-150.0,0.0003811,7]
[394213931,1763383848992,-160.22425461,0.0003811,7]
[394213932,1763383849002,-168.66866561,0.0003811,7]
[394213933,1763383849011,-162.69206005,0.0003811,7]
[394213934,1763383849021,-199.79400284,0.0003811,7]
[394213935,1763383849030,-190.6592067,0.0003811,7]
[394213936,1763383849039,-163.07953538,0.0003811,30]
[394213937,1763383849049,-272.9139887,0.00038121,2]
[394213938,1763383849058,-3880.4883753,0.00038121,2]
[394213939,1763383849068,-5756.745177,0.00038121,2]
[394213940,1763383849078,-2844.2690015,0.00038121,2]
[394213941,1763383849088,-151.0,0.00038126,31]
[394213942,1763383849098,-151.0,0.00038126,31]
[394213943,1763383849108,-151.0,0.00038126,31]
[394213944,1763383849118,-151.0,0.00038126,31]
[394213945,1763383849128,-151.0,0.00038126,31]
[394213946,1763383849136,-151.0,0.00038126,10]
[394213947,1763383849145,-151.0,0.00038126,31]
[394213948,1763383849155,-151.0,0.00038126,31]
[394213949,1763383849164,-151.0,0.00038126,31]
[394213950,1763383849178,-151.841322,0.00038126,31]
[394213951,1763383849187,-151.0,0.00038126,30]
[394213952,1763383849197,-151.0,0.00038126,31]
[394213953,1763383849206,-151.0,0.00038126,31]
[394213954,1763383849217,-151.0,0.00038126,31]
[394213955,1763383849226,-151.0,0.00038126,31]
[394213956,1763383849235,-239.659822,0.00038126,31]
[394213957,1763383849245,-239.659822,0.00038126,31]
[394213958,1763383849254,-239.659822,0.00038126,31]
[394213959,1763383849263,-151.0,0.00038126,31]
[394213960,1763383849272,-151.0,0.00038126,31]
[394213961,1763383849282,-239.659822,0.00038126,31]
[394213962,1763383849291,-151.0,0.00038126,31]
[394213963,1763383849300,-151.0,0.00038126,31]
[394213964,1763383849309,-151.0,0.00038126,31]
[394213965,1763383849319,-151.0,0.00038126,31]
[394213966,1763383849328,-500.0,0.00038126,14]
[394213967,1763383849337,-500.0,0.00038126,14]
[394213968,1763383849346,-500.0,0.00038126,14]
[394213969,1763383849355,-500.0,0.00038126,14]
[394213970,1763383849365,-500.0,0.00038126,14]
[394213971,1763383849374,-500.0,0.00038126,14]
[394213972,1763383849383,-500.0,0.00038126,14]
[394213973,1763383849392,-500.0,0.00038126,14]
[394213974,1763383849401,-151.0,0.00038126,31]
[394213975,1763383849410,-258.910321,0.00038126,31]
[394213976,1763383849419,-151.0,0.00038126,31]
[394213977,1763383849428,-151.0,0.00038126,31]
[394213978,1763383849439,-151.0,0.00038126,31]
[394213979,1763383849448,-151.0,0.00038126,31]
[394213980,1763383849458,-151.0,0.00038126,31]
[394213981,1763383849467,-151.0,0.00038126,31]
[394213982,1763383849476,-208.69574,0.00038126,31]
[394213983,1763383849485,-208.69574,0.00038126,31]
[394213984,1763383849494,-151.0,0.00038126,31]
[394213985,1763383849504,-151.0,0.00038126,31]
[394213986,1763383849513,-208.69574,0.00038126,31]
[394213987,1763383849522,-151.0,0.00038126,31]
[394213988,1763383849531,-208.69574,0.00038126,31]
[394213989,1763383849540,-151.0,0.00038126,31]
[394213990,1763383849550,-151.0,0.00038126,31]
[394213991,1763383849559,-151.0,0.00038126,15]
[394213992,1763383849568,-151.0,0.00038126,31]
[394213993,1763383849578,-151.0,0.00038126,31]
[394213994,1763383849589,-151.0,0.00038126,31]
[394213995,1763383849600,-151.0,0.00038126,31]
[394213996,1763383849609,-151.0,0.00038126,31]
[394213997,1763383849619,-500.0,0.00038134,30]
[394213998,1763383849629,-600.0,0.00038134,30]
[394213999,1763383849639,-500.0,0.00038134,30]
[394214000,1763383849650,-600.0,0.00038134,30]
[394214001,1763383849660,-500.0,0.00038134,30]
[394214002,1763383849671,-600.0,0.00038134,30]
[394214003,1763383849680,-500.0,0.00038134,30]
[394214004,1763383849690,-600.0,0.00038134,30]
[394214005,1763383849700,-500.0,0.00038134,30]
[394214006,1763383849709,-600.0,0.00038134,30]
[394214007,1763383849718,-500.0,0.00038134,30]
[394214008,1763383849727,-600.0,0.00038134,30]
[394214009,1763383849737,-500.0,0.00038134,30]
[394214010,1763383849746,-600.0,0.00038134,30]
[394214011,1763383849756,-500.0,0.00038134,30]
[394214012,1763383849766,-500.0,0.00038134,30]
[394214013,1763383849775,-600.0,0.00038134,30]
[394214014,1763383849784,-600.0,0.00038134,30]
[394214015,1763383849794,-600.0,0.00038134,30]
[394214016,1763383849803,-600.0,0.00038134,30]
[394214017,1763383849813,-600.0,0.00038134,30]
[394214018,1763383849823,-600.0,0.00038134,30]
[394214019,1763383849833,-600.0,0.00038134,30]
[394214020,1763383849843,-600.0,0.00038134,30]
[394214021,1763383849852,-600.0,0.00038134,30]
[394214022,1763383849861,-600.0,0.00038134,30]
[394214023,1763383849870,-600.0,0.00038134,30]
[394214024,1763383849879,-600.0,0.00038134,30]
[394214025,1763383849889,-600.0,0.00038134,30]
[394214026,1763383849898,-500.0,0.00038134,2]
[394214027,1763383849908,-500.0,0.00038134,30]
[394214028,1763383849919,-500.0,0.00038135,120]
[394214029,1763383849929,-500.0,0.00038135,120]
[394214030,1763383849939,-336.41736396,0.00038135,120]
[394214031,1763383849949,-151.0,0.00038135,2]
[394214032,1763383849959,-357.59895,0.00038135,2]
[394214033,1763383849968,-500.0,0.00038135,120]
[394214034,1763383849977,-57937.14520087,0.00038136,120]
[394214035,1763383849987,-1000.0,0.00038136,30]
[394214036,1763383849996,-599.237,0.00038136,30]
[394214037,1763383850005,-1000.0,0.00038136,30]
[394214038,1763383850014,-1000.0,0.00038136,30]
[394214039,1763383850024,-409.227,0.00038136,30]
[394214040,1763383850033,-350359.71750511,0.00038136,2]
[394214041,1763383850572,-1247.0377835,0.00038136,2]
[394214042,1763383852700,-849.10834066,0.000307,2]
[394214054,1763384088784,287.88,0.00013699,2]
[394214065,1763384238096,-287.88,0.00020187,2]
[394214066,1763384238476,-287.88,0.00026676,2]
[394214067,1763384238894,-150.0,0.000289,14]
[394214068,1763384240286,-411.428874,0.00030447,2]
[394214069,1763384240712,-500.0,0.000306,2]
[394214070,1763384242167,-163.65657458,0.00031622,30]
[394214071,1763384242597,-461.50125361,0.00031725,2]
[394214088,1763384714050,195.0,0.00022,120]
[394214089,1763384716917,342.97092283,0.00022,120]
[394214376,1763384864121,-1686.58670219,0.0002,2]
[394214562,1763385032107,-400.32646289,0.0002,2]
[394214563,1763385032166,-509.33266233,0.0002,2]
[394214564,1763385032178,-1128.20244694,0.0002,2]
[394214565,1763385032194,-1275.55172565,0.0002,2]
[394214566,1763385032204,-833.0805,0.000219,2]
[394214567,1763385032215,-250.0,0.00022,2]
[394214568,1763385032225,-479.1746172,0.00022122,2]
[394214569,1763385032235,-833.0805,0.0002334,2]
[394214570,1763385032246,-250.0,0.0002475,2]
[394214571,1763385032257,-97808.38553311,0.000282,2]
[394214574,1763385038106,-302.64238328,0.0002478,2]
[394214781,1763385040285,-530.43811672,0.0002478,2]
[394214783,1763385040294,-1019.89614415,0.000282,2]
[394214785,1763385040305,-688.26153431,0.000282,2]
[394214787,1763385040316,-38597.45678843,0.000282,2]
[394214790,1763385040325,-411.428874,0.0002823,2]
[394214791,1763385040334,-363.05434986,0.00028373,5]
[394214794,1763385040344,-360.22664496,0.00028373,5]
[394214795,1763385040353,-504.28126932,0.00028373,5]
[394214797,1763385040362,-502.84272327,0.00028373,5]
[394214800,1763385040372,-300.0,0.00028399,2]
[394214802,1763385040382,-1200.0,0.00028399,2]
[394214804,1763385040392,-300.0,0.00028399,2]
[394214806,1763385040401,-5518.0,0.00029,3]
[394214808,1763385040410,-150.0,0.000295,14]